Cogmind - Beta 15 *** ADVENTURER MODE // 2025.05.07 @ 20:44:02 Player: Rotpup_ Result: Destroyed by H-61 Shepherd with Heavy Assault Cannon Performance ------------- Evolutions (3) 1500 Regions Visited (8) 1600 Robots Destroyed (120) 600 Value Destroyed (3452) 3452 Prototype IDs (3) 60 Alien Tech Used (0) 0 Bonus (68) 68 TOTAL SCORE: 7280 Bonus ------- High Alert Combat Kills 24 Follower Combat Kills 326 Friendly Fire -282 Cogmind --------- Core Integrity 0/700 Matter 162/300 Energy 98/100 System Corruption 9% Temperature Warning (312) Movement Core (750) Ox14 Location -7/Factory Parts ------- > --- POWER (1) -------- (None) > --- PROPULSION (4) --- (None) > --- UTILITY (4) ------ Large Storage Unit Advanced Targeting Computer Advanced Field Recycling Unit > --- WEAPON (4) ------- Mini Assault Cannon Mini Assault Cannon > --- INVENTORY (15) --- Deuterium Engine Wheel Improved Cooling System Weight Redist. System Machine Analyzer Hardened Heavy Armor Plating Hardened Heavy Armor Plating Reflective Plating Heavy Assault Rifle Heavy Missile Launcher Remote Datajack Heavy Flail Peak State ------------ > --- POWER ------------ Reinforced Ion Engine > --- PROPULSION ------- Wheel Wheel Compact Wheel Armored Wheel > --- UTILITY ---------- Large Storage Unit Advanced Targeting Computer Matter Filter Advanced Field Recycling Unit > --- WEAPON ----------- Mini Assault Cannon Mini Assault Cannon Mini Assault Cannon Mini Assault Cannon > --- INVENTORY -------- Deuterium Engine Wheel Improved Cooling System Weight Redist. System Machine Analyzer Hardened Heavy Armor Plating Hardened Heavy Armor Plating Reflective Plating Heavy Assault Rifle Heavy Missile Launcher Remote Datajack Heavy Flail [Rating: 45] Favorites ----------- Power Light Nuclear Core Engine Reinforced Ion Engine Power Core Light Nuclear Core Reactor Antimatter Reactor Propulsion Light Treads Treads Light Treads Wheel Wheel Hover Unit Backup Propulsion III Flight Unit Cesium-ion Thruster Utility Seismic Detector Device Seismic Detector Storage Huge Storage Unit Processor Launcher Guidance Computer Protection Hardened Medium Armor Plating Weapon Light Cannon Energy Gun Medium Laser Energy Cannon Particle Cannon Ballistic Gun Assault Rifle Ballistic Cannon Light Cannon Launcher Heavy Missile Launcher Build | -11 -10 -10 -10 -9 -8 -7 -7 -7 ------- Run | Yrd Mat Min Exi Min Mat Fac Was Fac Slots Evolved 6 | . . . . . 4 2 . . Power . | . . . . . . . . . Propulsion 2 | . . . . . 2 . . . Utility 2 | . . . . . . 2 . . Weapon 2 | . . . . . 2 . . . Parts Attached 69 | 7 10 1 . 2 6 6 9 28 Power 11 | 1 2 1 . 1 2 . 2 2 Engine 6 | 1 1 . . . 1 . 1 2 Core 4 | . 1 1 . 1 1 . . . Reactor 1 | . . . . . . . 1 . Propulsion 22 | 2 2 . . . 2 1 2 13 Treads 8 | 2 2 . . . 2 1 . 1 Leg . | . . . . . . . . . Wheel 11 | . . . . . . . . 11 Hover 1 | . . . . . . . . 1 Flight 2 | . . . . . . . 2 . Utility 13 | 2 2 . . . . 2 3 4 Device 6 | 1 . . . . . 1 1 3 Storage 3 | 1 2 . . . . . . . Processor 2 | . . . . . . . 1 1 Hackware . | . . . . . . . . . Protection 2 | . . . . . . 1 1 . Artifact . | . . . . . . . . . Weapon 23 | 2 4 . . 1 2 3 2 9 Energy Gun 2 | 2 . . . . . . . . Energy Cannon 1 | . . . . . . 1 . . Ballistic Gun 5 | . 2 . . . . . . 3 Ballistic Cannon 11 | . 2 . . . 2 2 1 4 Launcher 4 | . . . . 1 . . 1 2 Special Weapon . | . . . . . . . . . Impact Weapon . | . . . . . . . . . Slashing Weapon . | . . . . . . . . . Piercing Weapon . | . . . . . . . . . Special Melee Weapon . | . . . . . . . . . Unidentified Prototypes 2 | . . . . . . . . 2 Parts Lost 27 | . 1 . . . 1 . 9 16 Power 3 | . . . . . . . 2 1 Propulsion 10 | . 1 . . . 1 . . 8 Utility 4 | . . . . . . . 3 1 Weapon 10 | . . . . . . . 4 6 Highest Loss Streak 9 | . 1 . . . 1 . 9 6 To Critical Strikes 2 | . . . . . . . 1 1 Average Backups 10 | 2 10 14 15 15 12 14 8 6 Power 1 | . . 1 2 2 2 3 . 1 Propulsion . | . . 1 1 1 . 1 1 . Utility 4 | . 4 6 6 6 5 4 2 3 Weapon 3 | . 3 6 6 6 4 5 4 1 Tool/Special . | . . . . . . . . . Unused Backups 23 | . 4 . . . 1 . 5 13 Power 4 | . 1 . . . . . 2 1 Propulsion 1 | . . . . . . . . 1 Utility 14 | . 2 . . . 1 . 3 8 Weapon 3 | . 1 . . . . . . 2 Tool/Special 1 | . . . . . . . . 1 Average Slot Usage (%) 92 | . 99 100 100 100 94 99 64 85 Engine 3 | . 5 . . . 3 . . 6 Core 6 | . 8 14 14 14 5 7 2 . Treads 19 | . 27 28 28 28 31 30 9 4 Wheel 3 | . . . . . . . . 10 Hover 1 | . . . . . . . . 6 Device 13 | . 14 14 14 14 9 14 7 14 Storage 8 | . 14 14 14 14 9 7 2 2 Processor 2 | . . . . . . . 3 7 Protection 2 | . . . . . . 7 5 4 Energy Gun 1 | . 3 . . . . . 7 . Ballistic Gun 5 | . 11 . . . . . . 10 Ballistic Cannon 16 | . 12 28 28 27 35 27 6 5 Launcher 3 | . . . . . . . 3 9 Peak Build Rating 45 | 7 10 10 10 11 19 28 38 45 Average Rating 19 | 4 8 10 10 10 16 24 25 33 On Entrance 14 | . 7 10 10 10 10 19 28 32 Naked Turns 48 | . . . . . . . 48 . Heaviest Build 118 | 15 92 92 92 92 98 104 118 65 Greatest Support 88 | 40 40 40 40 40 80 88 88 54 Greatest Overweight (x) 4 | . 4 2 2 2 1 1 3 4 Average Overweight (x) 1 | . 1 2 2 2 1 1 1 1 Largest Inventory Capacity 25 | 8 25 25 25 25 25 25 25 15 Average Capacity 18 | 5 24 25 25 25 25 25 10 8 Most Carried 20 | 5 14 15 15 16 14 16 20 15 Average Carried 10 | 2 10 14 15 15 12 14 8 6 Final Capacity 25 | 8 25 25 25 25 25 25 5 15 Final Carried 16 | 3 14 15 15 15 14 16 5 14 Class Distribution -------------------- 49% | Mutant 28% | Scavenger-Gunner 9% | Gunner 8% | Tank 4% | Scavenger-Mutant Dominant Class ---------------- Mutant | -10/Materials Mutant | -10/Mines Mutant | -10/Exiles Mutant | -9/Mines Gunner | -8/Materials Tank | -7/Factory Scavenger-Gunner | -7/Waste Scavenger-Gunner | -7/Factory Resources | -11 -10 -10 -10 -9 -8 -7 -7 -7 ----------- Run | Yrd Mat Min Exi Min Mat Fac Was Fac Matter Collected 3468 | 52 815 58 . 326 436 100 547 1134 Remotely 221 | . . . . . . . 221 . Salvage Created 3470 | 73 800 156 . 88 640 . 397 1316 Parts 182 | 4 48 13 . 4 39 . 2 72 Haulers Intercepted 3 | . 1 . . . 1 . . 1 Recyclers Shooed 2 | . 1 1 . . . . . . Parts Field Recycled 20 | . . . . . . . . 20 Retrieved Matter 359 | . . . . . . . . 359 Parts Self-Destructed . | . . . . . . . . . Prevented . | . . . . . . . . . Kills | -11 -10 -10 -10 -9 -8 -7 -7 -7 ------- Run | Yrd Mat Min Exi Min Mat Fac Was Fac Combat Hostiles Destroyed 89 | . 19 7 . 16 17 . 2 28 Guns 16 | . 9 . . . . . . 7 Cannons 53 | . 9 7 . 9 17 . 2 9 AOE 20 | . 1 . . 7 . . . 12 Classes Destroyed 16 | 2 5 . . 1 5 . 1 2 Worker 9 | . 2 . . . 3 . . 4 Builder 8 | . . . . . 1 . . 7 Tunneler 2 | 1 . . . . . . . 1 Hauler 3 | . 1 . . . 1 . . 1 Recycler 6 | 1 2 1 . . . . . 2 Mechanic 2 | . . . . . . . . 2 Operator 2 | . . . . . 1 . . 1 Watcher 10 | . 3 . . . 3 . . 4 Swarmer 17 | . 7 3 . 4 3 . . . Grunt 41 | . 12 4 . . 10 . . 15 Duelist 1 | . . . . . 1 . . . Sentry 7 | . . . . . 2 . . 5 Hunter 5 | . . . . . 1 . . 4 Programmer 4 | . . . . . . . . 4 Compactor 2 | . . . . . . . 2 . Assembled 12 | . . . . 12 . . . . Surgeon 1 | . . . . . . . . 1 Best Kill Streak 15 | 2 4 3 . 11 15 . 1 9 Combat Bots Only 11 | . 4 3 . 11 4 . 1 4 Max Kills in Single Turn 8 | 1 1 1 . 3 2 . 1 8 Gunslinging . | . . . . . . . . . Exploded 3 | . 1 . . 3 . . . 2 Melee . | . . . . . . . . . Uniques/NPCs Destroyed . | . . . . . . . . . Combat | -11 -10 -10 -10 -9 -8 -7 -7 -7 -------- Run | Yrd Mat Min Exi Min Mat Fac Was Fac Hostile Shots Fired 550 | . 118 32 . 34 41 . 20 305 Missed 160 | . 26 14 . 9 10 . . 101 Hits 390 | . 92 18 . 25 31 . 20 204 Melee 24 | . . . . 4 . . 20 . Projectile 366 | . 92 18 . 21 31 . . 204 AOE 2 | . 1 . . . . . . 1 Critical Strikes 24 | . . . . . 4 . 13 7 Actively Blocked 3 | . . . . . . . 3 . Damage Taken 4960 | . 726 130 . 280 383 . 725 2716 Core 938 | . 141 8 . 43 24 . 329 393 Absorbed by Shields . | . . . . . . . . . Redirected to Shielding 50 | . . . . . . . 50 . Ignored by Resistances 1444 | . 230 44 . 83 109 . 191 787 Regen/Repaired (Parts) 405 | . . . . . . . 12 393 Core Remaining (%) 72 | 100 . . . 23 95 . . . Volleys Fired 274 | 7 70 18 . 18 39 1 16 105 Largest 4 | 2 2 2 . 2 4 1 3 4 Hottest 173 | 100 100 60 . 60 120 40 173 160 Shots Fired 628 | 14 140 36 . 35 156 1 30 216 Gun 211 | 14 98 . . . . . . 99 Cannon 377 | . 42 36 . 25 156 1 29 88 Launcher 40 | . . . . 10 . . 1 29 Special . | . . . . . . . . . Kinetic 548 | . 120 36 . 25 156 1 23 187 Thermal 40 | 14 20 . . . . . 6 . Explosive 40 | . . . . 10 . . 1 29 Electromagnetic . | . . . . . . . . . Robot Hit Streak 45 | 13 16 8 . 7 45 3 15 18 Robot Miss Streak 5 | . 4 5 . 1 5 . 1 4 Penetration Max 1 | . . . . . . . . 1 Secondary Targets 2 | . 2 . . . . . . . Max Gunslinging Chain 1 | . 1 . . . . . . . Shots Hit Robots 430 | 13 95 23 . 16 99 1 26 157 Core Hits 215 | 3 36 9 . 21 47 . 5 94 Critical Kills 1 | . . . . . . . . 1 Critical Parts Destroyed 1 | . . . . . . . . 1 Critical Strikes 17 | 1 2 . . . 3 . 2 9 Burn 1 | 1 . . . . . . . . Destroy 3 | . . . . . . . . 3 Blast 13 | . 2 . . . 3 . 2 6 Melee Attacks . | . . . . . . . . . Impact . | . . . . . . . . . Slashing . | . . . . . . . . . Piercing . | . . . . . . . . . Sneak Attacks . | . . . . . . . . . Combat Hostiles . | . . . . . . . . . Follow-up Attacks . | . . . . . . . . . Damage Inflicted 11403 | 164 1491 399 . 624 1748 30 1289 5658 Guns 2322 | 164 915 . . . . . . 1243 Cannons 5944 | . 504 399 . 260 1748 30 1289 1714 Explosions 3137 | . 72 . . 364 . . . 2701 Melee . | . . . . . . . . . Ramming . | . . . . . . . . . Kinetic 7817 | . 1256 399 . 260 1748 30 1167 2957 Thermal 986 | 164 163 . . . . . 122 537 Explosive 2528 | . . . . 364 . . . 2164 Electromagnetic 72 | . 72 . . . . . . . Impact . | . . . . . . . . . Slashing . | . . . . . . . . . Piercing . | . . . . . . . . . Highest Corruption 9 | . . . . . . . . 9 Average Corruption 3 | . . . . . . . . 3 Corruption Purged . | . . . . . . . . . Corruption Blocked . | . . . . . . . . . Effects 39 | . . . . . . . . 39 Message Errors 12 | . . . . . . . . 12 Matter Fused 10 | . . . . . . . . 10 Heat Flow Errors 2 | . . . . . . . . 2 Energy Discharges 3 | . . . . . . . . 3 Parts Rejected 1 | . . . . . . . . 1 Data Loss (minor) 4 | . . . . . . . . 4 Data Loss (major) 2 | . . . . . . . . 2 Misfires 1 | . . . . . . . . 1 Weapon Failures 4 | . . . . . . . . 4 Overload Shots . | . . . . . . . . . Overflow Damage 145 | . 5 16 . 9 2 . . 113 Projectiles 51 | . 5 16 . . 2 . . 28 Explosions 94 | . . . . 9 . . . 85 Melee . | . . . . . . . . . Knockbacks 34 | . 3 7 . 3 13 1 . 7 Impact . | . . . . . . . . . Kinetic 32 | . 3 7 . 3 12 1 . 6 Secondary 2 | . . . . . 1 . . 1 Self-Inflicted Damage 136 | . . . . . . . . 136 Shots 4 | . . . . . . . . 4 Rammed . | . . . . . . . . . Targets Rammed . | . . . . . . . . . Kicked . | . . . . . . . . . Crushed . | . . . . . . . . . Highest Temperature 464 | 156 272 72 . 48 249 . 306 464 Average Temperature 77 | 59 59 18 . 17 78 . 150 148 Received Heat Transfer 1194 | . 339 60 . . 294 . . 501 Effects 4 | . . . . . 1 . . 3 Shutdowns 1 | . . . . . . . . 1 Energy Bleed 2 | . . . . . 1 . . 1 Matter Decay 1 | . . . . . . . . 1 Siege Activations . | . . . . . . . . . Martial Activations . | . . . . . . . . . Shielding Activations . | . . . . . . . . . Robots Disrupted . | . . . . . . . . . Combat Hostiles . | . . . . . . . . . Robots Corrupted . | . . . . . . . . . Combat Hostiles . | . . . . . . . . . Parts Fried . | . . . . . . . . . Impact Corruptions . | . . . . . . . . . Robots Melted . | . . . . . . . . . Combat Hostiles . | . . . . . . . . . Parts Melted 4 | 2 1 . . . . . . 1 Heat Transferred 1608 | 555 481 . . . . . 222 350 Parts Sabotaged . | . . . . . . . . . Parts Stolen . | . . . . . . . . . Parts Stripped . | . . . . . . . . . Power Chain Reactions . | . . . . . . . . . Alert | -11 -10 -10 -10 -9 -8 -7 -7 -7 ------- Run | Yrd Mat Min Exi Min Mat Fac Was Fac Maximum Alert Level 2 | . . . . . 1 . . 2 Low Security (%) 85 | 100 100 100 . 100 73 100 100 64 Level 1 12 | . . . . . 26 . . 28 Level 2 2 | . . . . . . . . 6 Level 3 . | . . . . . . . . . Level 4 . | . . . . . . . . . Level 5 . | . . . . . . . . . High Security . | . . . . . . . . . Max Security . | . . . . . . . . . Peak Influence 456 | 5 89 95 . 90 249 56 24 456 Initial 56 | . . . . . . 56 . . Average 73 | . 19 28 . 10 144 8 . 153 Influence Increases 2982 | 10 531 209 . 98 506 12 38 1578 Destroy 0b10 Robot/C 1700 | . 380 140 . 80 360 . . 740 Destroy 0b10 Robot/NC 215 | 10 40 5 . . 45 . . 115 Destroy Leader 416 | . 68 30 . 10 78 . . 230 Allied During Kill 107 | . . . . . 5 . . 102 Successful Hack 61 | . 19 4 . . 5 12 . 21 Select Force Hacks 30 | . . . . . . . . 30 Disable Machine 99 | . 9 . . . 9 . . 81 Destroy Structure 309 | . . . . 8 4 . 38 259 Lose Combat Pursuer 45 | . 15 30 . . . . . . Influence Decreases 2821 | 10 531 209 . 98 360 158 38 1417 Entered New Map 90 | . . . . . . 90 . . Time Decay 2402 | 10 521 209 . 98 290 68 16 1190 Lost Part 185 | . 10 . . . 10 . 5 160 Lost Ally 144 | . . . . . 60 . 17 67 Squads Dispatched 24 | . 2 1 . . 3 . . 18 Investigation 8 | . 2 1 . . 2 . . 3 Extermination 6 | . . . . . . . . 6 Reinforcement 7 | . . . . . 1 . . 6 Assault . | . . . . . . . . . Garrison 3 | . . . . . . . . 3 Intercept . | . . . . . . . . . Searches Triggered . | . . . . . . . . . Construction Impeded . | . . . . . . . . . Haulers Reinforced 3 | . . . . . . . . 3 Active Scanning Responses . | . . . . . . . . . Cargo Convoy Interrupts 1 | . . . . . . . . 1 Stealth | -11 -10 -10 -10 -9 -8 -7 -7 -7 --------- Run | Yrd Mat Min Exi Min Mat Fac Was Fac Distress Signals 7 | . 3 . . . 3 . . 1 Communications Jammed . | . . . . . . . . . Distress Signals . | . . . . . . . . . Times Spotted 131 | . 32 8 . 16 24 . 6 45 Peak Tracking Total 8 | . 8 3 . 7 6 . 4 5 Tactical Retreats 5 | . 2 2 . 1 . . . . Traps | -11 -10 -10 -10 -9 -8 -7 -7 -7 ------- Run | Yrd Mat Min Exi Min Mat Fac Was Fac Traps Triggered 6 | . . . . . . 1 . 5 Indirectly . | . . . . . . . . . Trap Hack Attempts . | . . . . . . . . . Triggered . | . . . . . . . . . Disarmed . | . . . . . . . . . Reprogrammed . | . . . . . . . . . Reused . | . . . . . . . . . Traps Extracted . | . . . . . . . . . Installed . | . . . . . . . . . Triggered . | . . . . . . . . . Machines | -11 -10 -10 -10 -9 -8 -7 -7 -7 ---------- Run | Yrd Mat Min Exi Min Mat Fac Was Fac Machines Disabled 11 | . 1 . . . 1 . . 9 Max in Single Turn 2 | . 1 . . . 1 . . 2 Machines Repaired . | . . . . . . . . . Machines Dismantled . | . . . . . . . . . Machines Sabotaged . | . . . . . . . . . Overloaded Fab Kills . | . . . . . . . . . Hacking | -11 -10 -10 -10 -9 -8 -7 -7 -7 --------- Run | Yrd Mat Min Exi Min Mat Fac Was Fac Machines Accessed 18 | . 6 1 1 . 3 1 . 6 Terminals 10 | . 4 1 . . 3 1 . 1 Fabricators . | . . . . . . . . . Repair Stations 3 | . 1 . . . . . . 2 Recycling Units 1 | . 1 . . . . . . . Scanalyzers 2 | . . . . . . . . 2 Garrison Access 1 | . . . . . . . . 1 Total Hacks 48 | . 20 4 1 . 8 2 . 13 Successful 29 | . 13 1 1 . 6 1 . 7 Failed 19 | . 7 3 . . 2 1 . 6 Catastrophic 3 | . 1 1 . . . . . 1 Database Lockouts . | . . . . . . . . . Manual 28 | . 15 4 . . 6 1 . 2 Terminals 29 | . 14 4 . . 8 2 . 1 Fabricators . | . . . . . . . . . Repair Stations 9 | . 4 . . . . . . 5 Recycling Units 2 | . 2 . . . . . . . Scanalyzers 4 | . . . . . . . . 4 Garrison Access 3 | . . . . . . . . 3 Terminal Hacks 7 | . 4 . 1 . 2 . . . Record 1 | . . . 1 . . . . . Branch Access Points 2 | . 1 . . . 1 . . . Alert Level 1 | . 1 . . . . . . . Locate Traps 1 | . 1 . . . . . . . Security Status 1 | . 1 . . . . . . . Patrol Status 1 | . . . . . 1 . . . Fabricator Hacks . | . . . . . . . . . Repair Station Hacks 5 | . 1 . . . . . . 4 Scan Component 3 | . 1 . . . . . . 2 Repair 2 | . . . . . . . . 2 Recycling Unit Hacks . | . . . . . . . . . Scanalyzer 2 | . . . . . . . . 2 Insert Component 1 | . . . . . . . . 1 Analyze 1 | . . . . . . . . 1 Garrison Access Hacks . | . . . . . . . . . Unauthorized Hacks 15 | . 8 1 . . 4 1 . 1 Terminals 12 | . 6 1 . . 4 1 . . Botnet 9 | . 4 1 . . 3 1 . . Operators 2 | . 1 . . . 1 . . . Skim 1 | . 1 . . . . . . . Fabricators . | . . . . . . . . . Repair Stations . | . . . . . . . . . Recycling Units 2 | . 2 . . . . . . . Reject 1 | . 1 . . . . . . . Mask 1 | . 1 . . . . . . . Scanalyzers 1 | . . . . . . . . 1 Extract 1 | . . . . . . . . 1 Garrison Access . | . . . . . . . . . Data Cores Recovered . | . . . . . . . . . Used . | . . . . . . . . . Hacking Detections 14 | . 4 1 . . 3 1 . 5 Full Trace Events 8 | . 3 1 . . 2 . . 2 Feedback Events . | . . . . . . . . . Feedback Blocked . | . . . . . . . . . Robot Schematics Acquired . | . . . . . . . . . Robots Built . | . . . . . . . . . Authchips . | . . . . . . . . . Time . | . . . . . . . . . Total Robot Build Rating . | . . . . . . . . . Part Schematics Acquired 8 | . . . . . . . . 8 Parts Built . | . . . . . . . . . Authchips . | . . . . . . . . . Time . | . . . . . . . . . Total Part Build Rating . | . . . . . . . . . Parts Repaired 2 | . . . . . . . . 2 Time 63 | . . . . . . . . 63 Parts Recycled . | . . . . . . . . . Recycled Matter . | . . . . . . . . . Retrieved Matter . | . . . . . . . . . Retrieved Components . | . . . . . . . . . Parts Scanalyzed 1 | . . . . . . . . 1 Part Schematics Acquired 1 | . . . . . . . . 1 Parts Damaged . | . . . . . . . . . Bothacking | -11 -10 -10 -10 -9 -8 -7 -7 -7 ------------ Run | Yrd Mat Min Exi Min Mat Fac Was Fac Used RIF Installer . | . . . . . . . . . Robots Hacked . | . . . . . . . . . Non-combat . | . . . . . . . . . Combat . | . . . . . . . . . Robot Hacks Applied . | . . . . . . . . . Relay Couplers Released . | . . . . . . . . . Fabnet Peak Effective % . | . . . . . . . . . Robots Rewired . | . . . . . . . . . Allies Hacked . | . . . . . . . . . Hacks Repelled . | . . . . . . . . . Allies | -11 -10 -10 -10 -9 -8 -7 -7 -7 -------- Run | Yrd Mat Min Exi Min Mat Fac Was Fac Total Allies 21 | . . . . 3 . . 18 . Largest Group 18 | . . . . 3 3 . 18 11 Highest-Rated Group 434 | . . . . 40 40 . 434 314 Highest-Rated Ally 35 | . . . . 16 16 . 35 35 Total Orders . | . . . . . . . . . Ally Attacks 176 | . . . . . 24 . 87 65 Total Damage 5918 | . . . . . 174 . 3612 2132 Kills 23 | . . . . . 1 . 10 12 Allies Corrupted . | . . . . . . . . . Allies Melted . | . . . . . . . . . Intel | -11 -10 -10 -10 -9 -8 -7 -7 -7 ------- Run | Yrd Mat Min Exi Min Mat Fac Was Fac Active Infowar (turns) 5262 | 27 1922 553 442 916 737 537 128 . Seismic 5262 | 27 1922 553 442 916 737 537 128 . Robot Analysis Total . | . . . . . . . . . Derelict Logs Recovered 2 | . . 2 . . . . . . Drone Launches . | . . . . . . . . . Drone Recoveries . | . . . . . . . . . Exploration | -11 -10 -10 -10 -9 -8 -7 -7 -7 ------------- Run | Yrd Mat Min Exi Min Mat Fac Was Fac Turns Passed 8227 | 96 1922 553 442 916 737 537 423 2601 Spaces Moved 3041 | 48 544 153 139 266 239 194 225 1233 Core 99 | 16 . . . . . . 83 . Treads 1789 | 32 544 153 139 266 239 194 38 184 Legs . | . . . . . . . . . Wheels 671 | . . . . . . . . 671 Hover 344 | . . . . . . . . 344 Flight 138 | . . . . . . . 104 34 Fastest Speed 32 | 50 160 320 320 320 240 245 32 92 Average Speed 228 | 123 306 320 320 320 243 245 155 165 Slowest Speed 480 | 160 480 320 320 320 245 245 272 272 Overloaded Moves . | . . . . . . . . . Propulsion Burnouts . | . . . . . . . . . Robots Hopped . | . . . . . . . . . Potential Cave-ins . | . . . . . . . . . Cave-ins Triggered . | . . . . . . . . . Exploration Rate (%) 43 | 5 74 36 49 76 21 5 87 35 Regions Visited 8 Branch Regions 3 Pre-discovered Areas . | . . . . . . . . . Known Exits Taken 2 | . 1 . . . 1 . . . Unknown Exits Taken 4 | 1 . 1 1 1 . . . . Scrap Searched 2 | . . 1 . 1 . . . . Spaces Dug 3 | . . . . . . . . 3 Terrain Destroyed 357 | . . . . 40 . . 6 311 Melee . | . . . . . . . . . Projectile 13 | . . . . 2 . . 1 10 AOE 344 | . . . . 38 . . 5 301 Terrain Rammed . | . . . . . . . . . Walls Destroyed . | . . . . . . . . . Machines Disabled . | . . . . . . . . . Actions | -11 -10 -10 -10 -9 -8 -7 -7 -7 --------- Run | Yrd Mat Min Exi Min Mat Fac Was Fac Total 3783 | 70 661 182 138 297 299 256 263 1617 Wait 240 | . 8 10 . 9 3 45 7 158 Move 3034 | 47 543 152 138 265 238 194 224 1233 Hop . | . . . . . . . . . Pick Up 85 | 9 21 1 . 1 8 7 1 37 Fast Attach 21 | 1 . . . . . . 10 10 Attach 33 | 6 1 . . . 5 2 1 18 Detach 3 | . . . . . . . 2 1 Swap 31 | . 9 1 . 3 2 4 1 11 Drop 41 | . 9 . . 1 4 3 1 23 Fire 274 | 7 70 18 . 18 39 1 16 105 Melee . | . . . . . . . . . Ram . | . . . . . . . . . Kick . | . . . . . . . . . Crush . | . . . . . . . . . Escape Stasis 21 | . . . . . . . . 21 Rewire . | . . . . . . . . . Trap . | . . . . . . . . . Miscellaneous . | . . . . . . . . . Route ------- -11/Scrapyard -10/Materials (discovered 4 exits: [*Mat x2] / *Min / [*Sub]) -10/Mines -10/Exiles -9/Mines -8/Materials (discovered 3 exits: *Fac x2 / Sto) -7/Factory -7/Waste -7/Factory History --------- Turn | Location | Event 6 | -11/Scrapyard | Discovered new exit (range 16) 97 | -11/Scrapyard | Entered Materials 308 | -10/Materials | Build established: Mutant 439 | -10/Materials | Discovered new exit (range 8) 623 | -10/Materials | Discovered new exit (range 10) 666 | -10/Materials | Identified exit to Mines 811 | -10/Materials | Core integrity fell below 50% 1140 | -10/Materials | Discovered new exit (range 15) 1197 | -10/Materials | Derelicts attacked the area 1767 | -10/Materials | Discovered new exit (range 13) 2019 | -10/Materials | Entered Mines 2133 | -10/Mines | Found DCF Scrap (12 items) 2323 | -10/Mines | Learned 2 Materials zone layouts 2556 | -10/Mines | Deemed a non-threat by the Exiles lab entrance 2556 | -10/Mines | Discovered new exit (range 5) 2572 | -10/Mines | Entered Exiles 2572 | -10/Exiles | Found Exiles lab abandoned 2979 | -10/Exiles | Discovered new exit (range 14) 3014 | -10/Exiles | Entered Mines 3015 | -9/Mines | Assembled infested the area 3180 | -9/Mines | Destroyed 11 combat bots 3828 | -9/Mines | Assisted by bots powering up and referring to "LRC-V3" 3860 | -9/Mines | Discovered new exit (range 8) 3930 | -9/Mines | Entered Materials 3930 | -8/Materials | Accompanied by 3 allies 3930 | -8/Materials | Evolved 4 slots: Propulsion x2, Weapon x2 3931 | -8/Materials | Identified exit to Storage 3932 | -8/Materials | Identified exit to Factory 4136 | -8/Materials | Lost 3 allies 4227 | -8/Materials | Build established: Gunner 4283 | -8/Materials | Discovered exit to Factory (range 16) 4667 | -8/Materials | Entered Factory 4667 | -7/Factory | Evolved 2 slots: Utility x2 4974 | -7/Factory | Build established: Tank 5204 | -7/Factory | Sucked down chute 5204 | -7/Factory | Entered Waste 5222 | -7/Waste | Spotted C-40 Crusher 5237 | -7/Waste | Spotted C-40 Crusher 5290 | -7/Waste | Destroyed C-40 Crusher 5306 | -7/Waste | Spotted C-40 Crusher 5310 | -7/Waste | Spotted C-40 Crusher 5317 | -7/Waste | Spotted C-40 Crusher 5323 | -7/Waste | Crushed by Compactor (1 part destroyed) 5326 | -7/Waste | Crushed by Compactor (0 parts destroyed, 2 dropped) 5329 | -7/Waste | Crushed by Compactor (1 part destroyed, 1 dropped) 5332 | -7/Waste | Crushed by Compactor (0 parts destroyed, 1 dropped) 5332 | -7/Waste | Crushed by Compactor (1 part destroyed) 5333 | -7/Waste | Destroyed C-40 Crusher 5335 | -7/Waste | Crushed by Compactor (0 parts destroyed, 1 dropped) 5336 | -7/Waste | Crushed by Compactor (0 parts destroyed, 1 dropped) 5353 | -7/Waste | Crushed by Compactor (1 part destroyed, 1 dropped) 5356 | -7/Waste | Crushed by Compactor (1 part destroyed) 5358 | -7/Waste | Crushed by Compactor (1 part destroyed) 5372 | -7/Waste | Spotted C-40 Crusher 5382 | -7/Waste | Warlord forces began an assault 5389 | -7/Waste | Lost 9 parts (2p3u4w) 5398 | -7/Waste | Allies destroyed C-40 Crusher 5412 | -7/Waste | Allies destroyed C-40 Crusher 5413 | -7/Waste | Allies destroyed C-40 Crusher 5416 | -7/Waste | Allies destroyed C-40 Crusher 5443 | -7/Waste | Lost 7 allies 5559 | -7/Waste | Discovered new exit (range 12) 5627 | -7/Waste | Entered Factory 5627 | -7/Factory | Accompanied by 11 allies 6002 | -7/Factory | Build established: Scavenger-Mutant 6314 | -7/Factory | Build established: Scavenger-Gunner 6329 | -7/Factory | Lost 3 allies 6458 | -7/Factory | Core integrity fell below 50% 6785 | -7/Factory | P-60 Hacker assimilated allied E2-VID(d) 6881 | -7/Factory | Repaired Hrd. Medium Armor Plating 7124 | -7/Factory | P-60 Hacker assimilated allied O1-0MY(m) 7175 | -7/Factory | Repaired Hvy. Missile Launcher 7312 | -7/Factory | Cargo convoy interrupted 7406 | -7/Factory | Garrison activated, responded to threat 7430 | -7/Factory | Lost 3 parts (1n1u1w) 7959 | -7/Factory | Core integrity fell below 20% 8008 | -7/Factory | Lost 4 parts (2n2w) 8228 | -7/Factory | Destroyed by H-61 Shepherd with Heavy Assault Cannon Last Messages --------------- 08166_ ALERT: Suspicious intruders detected, dispatching Specialist reinforcements to area. 08192_ S&L VROV&7V JUV